fUSD/lending_fUSD_20250510
["ID","MTS","AMOUNT","RATE_DAILY","PERIOD"]
[360524567,1746837047489,-400.0,0.00019953,2]
[360524568,1746837047500,-400.0,0.00019953,2]
[360524569,1746837047509,-260.69,0.00019953,2]
[360524570,1746837047519,-400.0,0.00019953,2]
[360524571,1746837047528,-400.0,0.00019953,2]
[360524572,1746837047538,-400.0,0.00019984,2]
[360524573,1746837047548,-400.0,0.00019984,2]
[360524574,1746837047558,-400.0,0.00019984,2]
[360524575,1746837047568,-400.0,0.00019984,2]
[360524576,1746837047579,-400.0,0.00019985,2]
[360524577,1746837047598,-400.0,0.00019985,2]
[360524578,1746837047616,-210.6357697,0.00019985,2]
[360524579,1746837047636,-400.0,0.00019898,2]
[360524580,1746837047648,-189.3642303,0.00019985,2]
[360524581,1746837047659,-400.0,0.00019985,2]
[360524582,1746837047668,-150.9415396,0.00019985,2]
[360524583,1746837047678,-400.0,0.00019985,2]
[360524584,1746837047688,-400.0,0.00019985,2]
[360524585,1746837047699,-400.0,0.00019985,2]
[360524586,1746837047710,-400.0,0.00019985,2]
[360524587,1746837047720,-400.0,0.00019994,2]
[360524588,1746837047731,-400.0,0.00019994,2]
[360524589,1746837047741,-400.0,0.00019994,2]
[360524590,1746837047758,-400.0,0.00019994,2]
[360524591,1746837047768,-400.0,0.00019998,2]
[360524592,1746837047778,-400.0,0.00019998,2]
[360524593,1746837047788,-400.0,0.00019998,2]
[360524594,1746837047798,-1097.37600581,0.00019999,2]
[360524595,1746837047807,-1257.63,0.00019999,2]
[360524596,1746837047817,-1257.63,0.00019999,2]
[360524597,1746837047826,-1257.63,0.00019999,2]
[360524598,1746837047836,-1257.63,0.00019999,2]
[360524599,1746837047845,-1257.63,0.00019999,2]
[360524600,1746837047855,-1257.63,0.00019999,2]
[360524601,1746837047865,-1257.63,0.00019999,2]
[360524602,1746837047875,-1257.63,0.00019999,2]
[360524603,1746837047888,-1257.63,0.00019999,2]
[360524604,1746837047898,-1257.63,0.00019999,2]
[360524605,1746837047908,-1257.63,0.00019999,2]
[360524606,1746837047920,-1257.80641571,0.00019999,2]
[360524607,1746837047930,-2844.13009957,0.00019999,2]
[360524608,1746837048046,-160.87973066,0.00019877,2]
[360524609,1746837048057,-602.04,0.00019898,2]
[360524610,1746837048068,-400.0,0.00019949,2]
[360524611,1746837048078,-602.04,0.00019949,2]
[360524612,1746837048088,-400.0,0.00019953,2]
[360524613,1746837048098,-602.04,0.00019953,2]
[360524614,1746837048109,-400.0,0.00019984,2]
[360524615,1746837048119,-602.04,0.00019984,2]
[360524616,1746837048135,-400.0,0.00019985,2]
[360524617,1746837048146,-400.0,0.00019998,2]
[360524618,1746837048157,-400.0,0.00019998,2]
[360524619,1746837048167,-400.0,0.00019998,2]
[360524620,1746837048177,-400.0,0.00019998,2]
[360524621,1746837048188,-1328.42708072,0.00019999,2]
[360524622,1746837048223,-400.0,0.00019898,2]
[360524623,1746837048233,-91.978224,0.00019985,2]
[360524638,1746837191437,906.74847199,0.0002955,30]
[360524639,1746837215758,3200.0,0.0003,30]
[360524640,1746837241670,1000.0,0.00018843,2]
[360524641,1746837310685,287.82,0.00016935,2]
[360524642,1746837311085,287.82,0.00019198,2]
[360524650,1746837654849,250.0,0.00017,2]
[360524651,1746837655915,300.0,0.00019,2]
[360524655,1746837684999,1000.0,0.0003,30]
[360524657,1746837691352,150.0,0.00029783,120]
[360524658,1746837695205,1000.0,0.0003,30]
[360524665,1746837811698,166.6,0.00019424,2]
[360524666,1746837836675,150.0,0.00018986,7]
[360524673,1746838053857,250.0,0.00019487,2]
[360524683,1746838216898,3000.0,0.0003,30]
[360524685,1746838231518,-200.0,0.00019574,2]
[360524686,1746838231529,-151.0,0.00019574,2]
[360524687,1746838231540,-200.0,0.00019732,2]
[360524688,1746838231551,-1000.0,0.00019746,2]
[360524689,1746838231561,-1000.0,0.00019783,2]
[360524690,1746838231572,-377.43676604,0.00019783,2]
[360524691,1746838231582,-300.0,0.00019785,2]
[360524692,1746838231593,-1200.0,0.00019785,2]
[360524693,1746838231603,-300.0,0.00019785,2]
[360524694,1746838231614,-151.0,0.00019786,2]
[360524695,1746838231624,-151.0,0.00019786,2]
[360524696,1746838231635,-151.0,0.00019786,2]
[360524697,1746838231645,-49.2463527,0.00019786,2]
[360524698,1746838231658,-158.1536473,0.00019786,2]
[360524699,1746838231668,-668.65185757,0.00019786,2]
[360524700,1746838231679,-150.0,0.00019791,2]
[360524701,1746838231689,-374.53882971,0.00019792,2]
[360524702,1746838231702,-625.46117029,0.00019792,2]
[360524703,1746838231712,-334.23557315,0.00019797,2]
[360524704,1746838231724,-503.76442685,0.00019797,2]
[360524705,1746838231734,-1000.0,0.00019797,2]
[360524706,1746838231747,-707.63031939,0.00019798,2]
[360524707,1746838231760,-859.8389303,0.00019798,2]
[360524708,1746838231771,-258.86013655,0.00019798,2]
[360524709,1746838231783,-590.00001,0.00019798,2]
[360524710,1746838231795,-1247.11792128,0.00019798,2]
[360524755,1746838237676,-8995.5153792,0.00019798,2]
[360524756,1746838237688,-1586.73634563,0.00019798,2]
[360524757,1746838237730,-418.68,0.00019798,2]
[360524758,1746838238079,1000.0,0.00018878,2]
[360524761,1746838239813,-3613.20860734,0.00019798,2]
[360524762,1746838239823,-270.4162,0.00019798,2]
[360524763,1746838239833,-329.5935,0.00019798,2]
[360524764,1746838239842,-794.0751,0.00019799,2]
[360524765,1746838239851,-160.87973066,0.000198,2]
[360524766,1746838239861,-1567.4692496,0.00019809,2]
[360524767,1746838239870,-1567.4692496,0.00019821,2]
[360524768,1746838239879,-1000.0,0.0001983,2]
[360524769,1746838239889,-917.0,0.00019831,2]
[360524770,1746838239898,-552.0,0.00019831,2]
[360524771,1746838239907,-90.8870568,0.00019831,2]
[360524772,1746838239919,-1363.1129432,0.00019831,2]
[360524773,1746838239928,-583.0,0.00019831,2]
[360524774,1746838239937,-825.01,0.00019831,2]
[360524775,1746838239946,-879.0,0.00019831,2]
[360524776,1746838239956,-1144.0,0.00019831,2]
[360524777,1746838239967,-1567.4692496,0.00019832,2]
[360524778,1746838239976,-1488.19907109,0.00019842,2]
[360524779,1746838239986,-1567.4692496,0.00019843,2]
[360524780,1746838239997,-1503.10273426,0.00019848,2]
[360524781,1746838240006,-167.78593989,0.00019852,2]
[360524782,1746838240015,-1503.10273417,0.00019854,2]
[360524783,1746838240025,-1567.4692496,0.00019855,2]
[360524784,1746838240035,-1450.05985159,0.0001986,2]
[360524785,1746838240047,-53.04288258,0.0001986,2]
[360524786,1746838240056,-1226.03402262,0.00019865,2]
[360524787,1746838240068,-277.06871155,0.00019865,2]
[360524788,1746838240078,-673.33128845,0.00019866,2]
[360524789,1746838240090,-548.00952576,0.00019866,2]
[360524790,1746838240105,-346.12843539,0.00019866,2]
[360524791,1746838240114,-129.52959638,0.00019871,2]
[360524793,1746838242720,-435.84438426,0.00019871,2]
[360524794,1746838242731,-937.72875353,0.00019871,2]
[360524795,1746838242741,-500.0,0.00019873,2]
[360524796,1746838242754,-421.05031247,0.00019873,2]
[360524797,1746838242776,-78.94968753,0.00019873,2]
[360524798,1746838242785,-500.0,0.00019873,2]
[360524799,1746838242794,-500.0,0.00019873,2]
[360524800,1746838242804,-500.0,0.00019873,2]
[360524801,1746838242813,-500.0,0.00019873,2]
[360524802,1746838242822,-500.0,0.00019873,2]
[360524803,1746838242831,-500.0,0.00019873,2]
[360524804,1746838242840,-222.14172616,0.00019873,2]
[360524805,1746838242853,-277.85827384,0.00019873,2]
[360524806,1746838242862,-722.14172616,0.00019877,2]
[360524807,1746838242890,-662.76706279,0.00019877,2]
[360524808,1746838242901,-118.19394522,0.00019877,2]
[360524809,1746838242911,-1567.4692496,0.00019877,2]
[360524810,1746838242921,-965.19975424,0.00019883,2]
[360524813,1746838245769,-537.90297993,0.00019883,2]
[360524814,1746838245779,-341.69,0.00019888,2]
[360524815,1746838245790,-692.40702007,0.00019888,2]
[360524817,1746838386972,1001.5,0.00030137,120]
[360524818,1746838415357,282.44,0.00017015,2]
[360524819,1746838415584,282.44,0.00019279,2]
[360524844,1746838973586,1135.0,0.00030137,120]
[360524856,1746839074812,36185.0,0.00019463,7]
[360524866,1746839182465,150.0,0.00018986,7]
[360524869,1746839190574,150.0,0.00028782,120]
[360524878,1746839252208,600.0,0.0003,30]
[360524887,1746839329892,1000.0,0.00018854,2]
[360524914,1746839431689,-453.0,0.000196,2]
[360524915,1746839431699,-1000.0,0.00019727,2]
[360524916,1746839431709,-879.0,0.00019754,2]
[360524917,1746839431718,-361.986,0.00019754,2]
[360524918,1746839431727,-200.0,0.00019778,2]
[360524919,1746839431736,-1000.0,0.00019783,2]
[360524920,1746839431745,-770.914,0.00019786,2]
[360524921,1746839431758,-429.086,0.00019786,2]
[360524922,1746839431768,-207.4,0.00019787,2]
[360524923,1746839431779,-151.0,0.00019787,2]
[360524924,1746839431789,-668.65185757,0.00019787,2]
[360524925,1746839431799,-151.0,0.00019787,2]
[360524926,1746839431808,-150.0,0.00019794,2]
[360524927,1746839431817,-300.0,0.00019796,2]
[360524928,1746839431826,-300.0,0.00019796,2]
[360524929,1746839431836,-21311.97914973,0.00019797,2]
[360524930,1746839431852,-7213.59885027,0.00019797,2]
[360524931,1746839431862,-2192.40114973,0.00019797,2]
[360524932,1746839431888,-307.59885027,0.00019797,2]
[360524933,1746839431897,-329.4801066,0.00019797,2]
[360524934,1746839431907,-418.68,0.00019798,2]
[360524935,1746839431916,-2019.24104313,0.00019799,2]
[360524936,1746839431927,-274.36602032,0.00019799,2]
[360524937,1746839431938,-3289.3190566,0.00019799,2]
[360524938,1746839431955,-6693.37477995,0.00019799,2]
[360524939,1746839431965,-453.49071011,0.000198,2]
[360524940,1746839431975,-329.48010652,0.00019808,2]
[360524941,1746839431984,-453.49071002,0.00019811,2]
[360524942,1746839431995,-329.48010652,0.0001982,2]
[360524943,1746839432006,-453.49071002,0.00019822,2]
[360524944,1746839432015,-201.45,0.00019831,2]
[360524945,1746839432026,-329.48010652,0.00019831,2]
[360524946,1746839432035,-453.49071002,0.00019833,2]
[360524947,1746839432044,-200.0,0.00019836,2]
[360524949,1746839432053,-329.48010652,0.00019843,2]
[360524950,1746839432063,-453.49071002,0.00019844,2]
[360524951,1746839432073,-329.48010652,0.00019854,2]
[360524952,1746839432084,-453.49071002,0.00019856,2]
[360524953,1746839432095,-329.48010652,0.00019866,2]
[360524955,1746839432104,-453.49071002,0.00019867,2]
[360524957,1746839432114,-167.78593989,0.00019871,2]
[360524958,1746839432123,-500.0,0.00019873,2]
[360524960,1746839432132,-500.0,0.00019873,2]
[360524962,1746839432141,-500.0,0.00019873,2]
[360524964,1746839432150,-500.0,0.00019873,2]
[360524966,1746839432159,-183.75992202,0.00019873,2]
[360524968,1746839432168,-500.0,0.00019873,2]
[360524970,1746839432178,-500.0,0.00019873,2]
[360524972,1746839432187,-500.0,0.00019873,2]
[360524974,1746839432196,-500.0,0.00019873,2]
[360524977,1746839432205,-500.0,0.00019873,2]
[360524979,1746839432214,-500.0,0.00019873,2]
[360524981,1746839432223,-329.48010652,0.00019877,2]
[360524982,1746839432232,-453.49071002,0.00019878,2]
[360524983,1746839432241,-154.85634558,0.00019878,2]
[360524984,1746839432250,-307.52,0.00019887,2]
[360524985,1746839432258,-307.52,0.00019887,2]
[360524986,1746839432267,-307.52,0.00019887,2]
[360524987,1746839432277,-307.52,0.00019887,2]
[360524988,1746839432286,-307.52,0.00019887,2]
[360524989,1746839432295,-307.52,0.00019887,2]
[360524990,1746839432304,-307.52,0.00019887,2]
[360524991,1746839432313,-967.39,0.00019887,2]
[360524992,1746839432322,-151.0,0.00019888,2]
[360524993,1746839432332,-329.48010652,0.00019889,2]
[360524994,1746839432341,-453.49071002,0.00019889,2]
[360524995,1746839432350,-1858.613,0.00019895,2]
[360524996,1746839432359,-57428.28320736,0.00019895,2]
[360524997,1746839432368,-400.0,0.00019896,2]
[360524998,1746839432377,-450.0,0.00019896,2]
[360524999,1746839432386,-400.0,0.00019896,2]
[360525001,1746839432396,-400.0,0.00019896,2]
[360525003,1746839432405,-528.05373876,0.00019896,2]
[360525005,1746839432414,-400.0,0.00019896,2]
[360525007,1746839432423,-400.0,0.00019896,2]
[360525009,1746839432432,-155.880471,0.00019896,2]
[360525011,1746839432442,-1471.253592,0.00019896,2]
[360525013,1746839432451,-286.748439,0.00019896,2]
[360525015,1746839432461,-400.0,0.00019896,2]
[360525017,1746839432470,-8846.385995,0.00019896,2]
[360525019,1746839432481,-400.0,0.00019896,2]
[360525021,1746839432492,-400.0,0.00019896,2]
[360525023,1746839432502,-547.51315736,0.00019896,2]
[360525025,1746839432512,-400.0,0.00019896,2]
[360525027,1746839432521,-400.0,0.00019896,2]
[360525029,1746839432531,-587.81,0.00019896,2]
[360525031,1746839432540,-156.696154,0.00019896,2]
[360525033,1746839432549,-400.0,0.00019896,2]
[360525035,1746839432559,-400.0,0.00019896,2]
[360525037,1746839432569,-400.0,0.00019896,2]
[360525039,1746839432578,-400.0,0.00019896,2]
[360525041,1746839432588,-400.0,0.00019896,2]
[360525043,1746839432600,-400.0,0.00019896,2]
[360525045,1746839432610,-400.0,0.00019896,2]
[360525046,1746839432619,-400.0,0.00019896,2]
[360525048,1746839432628,-576.7,0.00019896,2]
[360525051,1746839432639,-400.0,0.00019896,2]
[360525053,1746839432650,-400.0,0.00019896,2]
[360525055,1746839432659,-400.0,0.00019896,2]
[360525057,1746839432668,-400.0,0.00019896,2]
[360525058,1746839432678,-468.16,0.00019896,2]
[360525060,1746839432688,-400.0,0.00019896,2]
[360525063,1746839432698,-400.0,0.00019896,2]
[360525064,1746839432707,-400.0,0.00019896,2]
[360525066,1746839432717,-400.0,0.00019896,2]
[360525068,1746839432726,-400.0,0.00019896,2]
[360525070,1746839432735,-400.0,0.00019896,2]
[360525072,1746839432745,-400.0,0.00019896,2]
[360525074,1746839432754,-400.0,0.00019896,2]
[360525076,1746839432764,-400.0,0.00019896,2]
[360525078,1746839432773,-400.0,0.00019896,2]
[360525080,1746839432788,-400.0,0.00019896,2]
[360525082,1746839432798,-400.0,0.00019896,2]
[360525084,1746839432806,-400.0,0.00019896,2]
[360525086,1746839432815,-400.0,0.00019896,2]
[360525088,1746839432824,-400.0,0.00019896,2]
[360525090,1746839432835,-400.0,0.00019896,2]
[360525092,1746839432844,-400.0,0.00019896,2]
[360525094,1746839432854,-213.91045094,0.00019896,2]
[360525096,1746839432863,-400.0,0.00019896,2]
[360525098,1746839432872,-400.0,0.00019896,2]
[360525100,1746839432881,-400.0,0.00019896,2]
[360525102,1746839432891,-206.73276017,0.00019896,2]
[360525105,1746839432903,-296.93515176,0.00019896,2]
[360525106,1746839432913,-400.0,0.00019896,2]
[360525107,1746839432922,-400.0,0.00019896,2]
[360525108,1746839432932,-187.2086005,0.00019896,2]
[360525109,1746839432942,-400.0,0.00019896,2]
[360525110,1746839432951,-400.0,0.00019896,2]
[360525111,1746839432960,-400.0,0.00019896,2]
[360525112,1746839432969,-276.80225642,0.00019896,2]
[360525113,1746839432980,-123.19774358,0.00019896,2]
[360525114,1746839432991,-400.21169233,0.00019896,2]
[360525115,1746839433000,-170.60528527,0.00019896,2]
[360525116,1746839433016,-32.25556599,0.00019896,2]
[360525117,1746839433025,-374.74443401,0.00019896,2]
[360525118,1746839433050,-30.3955795,0.00019896,2]
[360525119,1746839433060,-404.5444205,0.00019896,2]
[360525120,1746839433071,-140.8755795,0.00019896,2]
[360525121,1746839433081,-400.0,0.00019896,2]
[360525122,1746839433090,-400.0,0.00019896,2]
[360525123,1746839433099,-432.47,0.00019896,2]
[360525124,1746839433109,-400.0,0.00019896,2]
[360525125,1746839433118,-224.6378992,0.00019896,2]
[360525126,1746839433128,-392.12954541,0.00019896,2]
[360525127,1746839433138,-400.0,0.00019896,2]
[360525128,1746839433148,-400.0,0.00019896,2]
[360525129,1746839433157,-449.81,0.00019896,2]
[360525130,1746839433166,-200.0,0.00019896,2]
[360525131,1746839433175,-400.0,0.00019896,2]
[360525132,1746839433184,-400.0,0.00019896,2]
[360525133,1746839433194,-450.0,0.00019896,2]
[360525134,1746839433203,-400.0,0.00019896,2]
[360525135,1746839433213,-977.86,0.00019896,2]
[360525136,1746839433223,-392.30806146,0.00019896,2]
[360525137,1746839433232,-400.0,0.00019896,2]
[360525138,1746839433241,-400.0,0.00019896,2]
[360525139,1746839433251,-400.0,0.00019896,2]
[360525140,1746839433260,-400.0,0.00019896,2]
[360525141,1746839433269,-400.0,0.00019896,2]
[360525142,1746839433279,-400.0,0.00019896,2]
[360525143,1746839433289,-500.0,0.00019896,2]
[360525144,1746839433299,-500.0,0.00019896,2]
[360525145,1746839433310,-400.0,0.00019896,2]
[360525146,1746839433319,-400.0,0.00019896,2]
[360525147,1746839433329,-456.65,0.00019896,2]
[360525148,1746839433339,-400.0,0.00019896,2]
[360525149,1746839433349,-400.0,0.00019896,2]
[360525150,1746839433359,-400.0,0.00019896,2]
[360525151,1746839433369,-400.0,0.00019896,2]
[360525152,1746839433378,-400.0,0.00019896,2]
[360525153,1746839433388,-400.0,0.00019896,2]
[360525154,1746839433398,-460.81,0.00019896,2]
[360525155,1746839433407,-210.59287841,0.00019896,2]
[360525156,1746839433417,-400.0,0.00019896,2]
[360525157,1746839433426,-180.07732932,0.00019896,2]
[360525158,1746839433435,-400.0,0.00019896,2]
[360525159,1746839433445,-400.0,0.00019896,2]
[360525160,1746839433455,-400.0,0.00019896,2]
[360525161,1746839433464,-299.65968492,0.00019896,2]
[360525162,1746839433473,-400.0,0.00019896,2]
[360525163,1746839433483,-400.0,0.00019896,2]
[360525164,1746839433495,-185.17805371,0.00019896,2]
[360525165,1746839433505,-400.0,0.00019896,2]
[360525166,1746839433514,-400.0,0.00019896,2]
[360525167,1746839433524,-297.42170741,0.00019896,2]
[360525168,1746839433535,-400.0,0.00019896,2]
[360525169,1746839433546,-400.0,0.00019896,2]
[360525170,1746839433555,-535.4,0.00019896,2]
[360525171,1746839433566,-400.0,0.00019896,2]
[360525172,1746839433576,-400.0,0.00019896,2]
[360525173,1746839433586,-400.0,0.00019896,2]
[360525174,1746839433595,-400.0,0.00019896,2]
[360525175,1746839433606,-400.0,0.00019896,2]
[360525176,1746839433619,-400.0,0.00019896,2]
[360525177,1746839433629,-400.0,0.00019896,2]
[360525178,1746839433639,-400.0,0.00019896,2]
[360525179,1746839433651,-400.0,0.00019896,2]
[360525180,1746839433661,-400.0,0.00019896,2]
[360525181,1746839433671,-400.0,0.00019896,2]
[360525182,1746839433681,-1646.83,0.00019896,2]
[360525183,1746839433691,-400.0,0.00019896,2]
[360525184,1746839433700,-400.0,0.00019896,2]
[360525185,1746839433710,-400.0,0.00019896,2]
[360525186,1746839433923,-1000.0,0.00019897,2]
[360525187,1746839433936,-400.0,0.00019897,2]
[360525188,1746839433946,-508.45769684,0.00019897,2]
[360525189,1746839433956,-526.05908634,0.00019897,2]
[360525190,1746839433965,-400.0,0.00019897,2]
[360525191,1746839433975,-508.66867901,0.00019897,2]
[360525192,1746839433985,-209.37747878,0.00019897,2]
[360525193,1746839433995,-309.51885139,0.00019897,2]
[360525195,1746839437625,-1144.0,0.00019754,2]
[360525196,1746839437636,-400.0,0.00019896,2]
[360525197,1746839437647,-400.0,0.00019896,2]
[360525198,1746839437657,-4103.63,0.00019896,2]
[360525199,1746839437667,-209.74813968,0.00019897,2]
[360525200,1746839437680,-371.77803477,0.00019897,2]
[360525201,1746839437691,-400.0,0.00019897,2]
[360525202,1746839437700,-400.0,0.00019897,2]
[360525203,1746839437709,-400.0,0.00019897,2]
[360525204,1746839437719,-507.19024423,0.00019897,2]
[360525205,1746839437728,-537.16223241,0.00019897,2]
[360525206,1746839437737,-156.84788519,0.00019897,2]
[360525207,1746839437747,-530.93113594,0.00019897,2]
[360525208,1746839437756,-400.0,0.00019897,2]
[360525209,1746839437766,-89.1520307,0.00019897,2]
[360525210,1746839437778,-410.8479693,0.00019897,2]
[360525211,1746839437788,-401.25430052,0.00019897,2]
[360525212,1746839437797,-400.0,0.00019897,2]
[360525213,1746839437806,-522.24010406,0.00019897,2]
[360525214,1746839437815,-400.0,0.00019897,2]
[360525215,1746839437824,-400.0,0.00019897,2]
[360525216,1746839437833,-400.0,0.00019897,2]
[360525217,1746839437844,-543.67375018,0.00019897,2]
[360525218,1746839437854,-154.34109135,0.00019897,2]
[360525219,1746839437863,-400.0,0.00019897,2]
[360525220,1746839437873,-502.82056061,0.00019897,2]
[360525221,1746839437884,-400.0,0.00019897,2]
[360525222,1746839437894,-521.37755964,0.00019897,2]
[360525223,1746839437906,-400.0,0.00019897,2]
[360525224,1746839437916,-531.90278496,0.00019897,2]
[360525225,1746839437932,-400.0,0.00019897,2]
[360525226,1746839437942,-400.0,0.00019897,2]
[360525227,1746839437952,-530.71498214,0.00019897,2]
[360525228,1746839437962,-400.0,0.00019897,2]
[360525229,1746839437973,-400.0,0.00019897,2]
[360525230,1746839437984,-400.0,0.00019897,2]
[360525231,1746839437993,-19.63402205,0.00019897,2]
[360525232,1746839438021,-468.40396298,0.00019897,2]
[360525233,1746839438033,-42.78814579,0.00019897,2]
[360525234,1746839438041,-400.0,0.00019897,2]
[360525235,1746839438050,-400.0,0.00019897,2]
[360525236,1746839438059,-400.0,0.00019897,2]
[360525237,1746839438069,-328.64661527,0.00019897,2]
[360525238,1746839438079,-400.0,0.00019897,2]
[360525239,1746839438088,-400.0,0.00019897,2]
[360525241,1746839438097,-400.0,0.00019897,2]
[360525243,1746839438106,-400.0,0.00019897,2]
[360525245,1746839438115,-400.0,0.00019897,2]
[360525247,1746839438125,-452.00812933,0.00019897,2]
[360525248,1746839438134,-507.8665701,0.00019897,2]
[360525251,1746839438146,-400.0,0.00019897,2]
[360525252,1746839438160,-400.0,0.00019897,2]
[360525253,1746839438174,-400.0,0.00019897,2]
[360525254,1746839438184,-400.0,0.00019897,2]
[360525255,1746839438194,-400.0,0.00019897,2]
[360525256,1746839438207,-162.15897177,0.00019897,2]
[360525257,1746839438219,-237.84102823,0.00019897,2]
[360525258,1746839438229,-400.0,0.00019897,2]
[360525259,1746839438239,-400.0,0.00019897,2]
[360525260,1746839438249,-400.0,0.00019897,2]
[360525261,1746839438258,-226.57129086,0.00019897,2]
[360525262,1746839438269,-468.19979118,0.00019897,2]
[360525263,1746839438281,-400.0,0.00019897,2]
[360525264,1746839438291,-400.0,0.00019897,2]
[360525265,1746839438301,-531.97746865,0.00019897,2]
[360525266,1746839438312,-504.45456287,0.00019897,2]
[360525267,1746839438322,-402.59598395,0.00019897,2]
[360525268,1746839438333,-400.0,0.00019897,2]
[360525269,1746839438346,-155.88331477,0.00019897,2]
[360525270,1746839438357,-400.0,0.00019897,2]
[360525271,1746839438367,-231.7286291,0.00019897,2]
[360525272,1746839438389,-168.2713709,0.00019897,2]
[360525273,1746839438398,-400.0,0.00019897,2]
[360525274,1746839438407,-462.33,0.00019897,2]
[360525275,1746839438417,-400.0,0.00019897,2]
[360525276,1746839438426,-400.0,0.00019897,2]
[360525277,1746839438436,-400.0,0.00019897,2]
[360525278,1746839438445,-400.0,0.00019897,2]
[360525279,1746839438454,-400.0,0.00019897,2]
[360525280,1746839438464,-400.0,0.00019897,2]
[360525281,1746839438473,-400.0,0.00019897,2]
[360525282,1746839438483,-400.0,0.00019897,2]
[360525283,1746839438492,-400.0,0.00019897,2]
[360525284,1746839438501,-400.0,0.00019897,2]
[360525285,1746839438510,-400.0,0.00019897,2]
[360525286,1746839438520,-400.0,0.00019897,2]
[360525287,1746839438529,-400.0,0.00019897,2]
[360525288,1746839438540,-400.0,0.00019897,2]
[360525289,1746839438550,-502.49488527,0.00019897,2]
[360525290,1746839438560,-400.0,0.00019897,2]
[360525291,1746839438575,-400.0,0.00019897,2]
[360525292,1746839438584,-400.0,0.00019897,2]
[360525293,1746839438593,-362.23533807,0.00019897,2]
[360525343,1746839440023,-400.0,0.00019896,2]
[360525345,1746839440034,-37.76466193,0.00019897,2]
[360525347,1746839440043,-400.0,0.00019897,2]
[360525349,1746839440053,-44.3103584,0.00019897,2]
[360525351,1746839440065,-355.6896416,0.00019897,2]
[360525353,1746839440075,-10.76170468,0.00019897,2]
[360525366,1746839440189,-389.23829532,0.00019897,2]
[360525368,1746839440199,-400.0,0.00019897,2]
[360525371,1746839440209,-393.09636344,0.00019897,2]
[360525373,1746839440222,-6.90363656,0.00019897,2]
[360525375,1746839440232,-400.0,0.00019897,2]
[360525377,1746839440241,-400.0,0.00019897,2]
[360525379,1746839440251,-171.28178764,0.00019897,2]
[360525468,1746839442905,-400.0,0.00019896,2]
[360525469,1746839442915,-228.71821236,0.00019897,2]
[360525470,1746839442925,-400.0,0.00019897,2]
[360525471,1746839442935,-400.0,0.00019897,2]
[360525472,1746839442944,-400.0,0.00019897,2]
[360525473,1746839442954,-211.28158764,0.00019897,2]
[360525490,1746839445794,-563.32,0.00019896,2]
[360525491,1746839445804,-219.11841236,0.00019897,2]
[360525492,1746839445814,-400.0,0.00019897,2]
[360525493,1746839445823,-400.0,0.00019897,2]
[360525494,1746839445832,-58.54425751,0.00019897,2]
[360525495,1746839445851,-341.45574249,0.00019897,2]
[360525496,1746839445861,-400.0,0.00019897,2]
[360525497,1746839445870,-499.93,0.00019897,2]
[360525498,1746839445881,-400.0,0.00019897,2]
[360525499,1746839445891,-400.0,0.00019897,2]
[360525500,1746839445901,-400.0,0.00019897,2]
[360525501,1746839445911,-411.04,0.00019897,2]
[360525502,1746839445922,-400.0,0.00019897,2]
[360525503,1746839445932,-400.0,0.00019897,2]